bitfinex-derivatives/quotes_BTCF0:USTF0_20250422
["timestamp","ask_amount","ask_price","bid_price","bid_amount"]
[1745320489995,0.074,88560.0,88559.0,1.35664431]
[1745320491394,0.002,88560.0,88559.0,1.35664431]
[1745320491588,0.1129926,88573.0,88572.0,0.1129115]
[1745320491790,0.2249926,88573.0,88572.0,0.60992772]
[1745320491987,0.11208,88573.0,88572.0,0.60992772]
[1745320492189,0.11208,88573.0,88572.0,0.80192772]
[1745320492390,0.11208,88573.0,88572.0,0.86362772]
[1745320492592,0.11208,88573.0,88572.0,0.86662772]
[1745320494198,0.11208,88573.0,88572.0,0.97952772]
[1745320494398,0.11208,88573.0,88572.0,0.98252772]
[1745320494596,0.07208,88573.0,88572.0,0.98252772]
[1745320495103,8e-05,88573.0,88572.0,1.34332772]
[1745320501004,8e-05,88573.0,88572.0,1.44332772]
[1745320506702,8e-05,88573.0,88572.0,1.80412772]
[1745320509306,8e-05,88573.0,88572.0,1.69122772]
[1745320509510,8e-05,88573.0,88572.0,1.80412772]
[1745320510696,0.00016926,88578.0,88576.0,0.1129064]
[1745320510896,0.0311,88584.0,88583.0,0.1128975]
[1745320511100,0.0311,88584.0,88583.0,0.4736975]
[1745320511403,0.0311,88584.0,88583.0,0.97071372]
[1745320512193,0.03118,88584.0,88583.0,1.19351372]
[1745320512893,0.03118,88584.0,88583.0,0.9226275]
[1745320513105,0.03118,88584.0,88583.0,1.19351372]
[1745320513296,0.03056,88591.0,88587.0,0.0564458]
[1745320513502,0.03056,88591.0,88583.0,0.696488]
[1745320513503,0.05056,88591.0,88590.0,0.97070472]
[1745320513708,0.0503,88591.0,88590.0,1.08358472]
[1745320513905,0.083,88591.0,88590.0,1.11438472]
[1745320514216,0.083,88591.0,88590.0,1.30638472]
[1745320514217,0.0327,88591.0,88590.0,1.30638472]
[1745320514404,0.0367,88591.0,88590.0,1.30638472]
[1745320514809,0.004,88591.0,88590.0,1.30638472]
[1745320515609,0.0343,88591.0,88590.0,1.30638472]
[1745320516006,0.0323,88591.0,88590.0,1.30638472]
[1745320516215,0.0343,88591.0,88590.0,1.30638472]
[1745320516410,0.07196,88605.0,88604.0,0.1128707]
[1745320516710,0.14226,88605.0,88604.0,0.4736707]
[1745320516913,0.14226,88605.0,88604.0,0.97068692]
[1745320517105,0.14226,88605.0,88604.0,1.16268692]
[1745320517709,0.15034,88605.0,88604.0,1.16368692]
[1745320519307,0.14634,88605.0,88604.0,1.16368692]
[1745320519505,0.14634,88605.0,88604.0,1.16268692]
[1745320520304,0.17704,88605.0,88604.0,1.16268692]
[1745320520708,0.17604,88605.0,88604.0,1.16268692]
[1745320521009,0.17504,88605.0,88604.0,1.16268692]
[1745320521211,0.13504,88605.0,88604.0,1.16268692]
[1745320523403,0.13496,88605.0,88604.0,1.16268692]
[1745320523718,0.13504,88605.0,88604.0,1.16268692]
[1745320529514,0.13504,88605.0,88604.0,0.83198692]
[1745320529714,0.13504,88605.0,88604.0,1.19278692]
[1745320530415,0.00016936,88613.0,88612.0,0.1128605]
[1745320530618,0.02016936,88613.0,88612.0,0.97067672]
[1745320531315,0.02016936,88613.0,88612.0,1.16267672]
[1745320531815,0.02024936,88613.0,88612.0,1.19277672]
[1745320532009,0.02424936,88613.0,88612.0,1.19277672]
[1745320532210,0.05564936,88613.0,88612.0,1.19277672]
[1745320532616,0.05864936,88613.0,88612.0,1.19277672]
[1745320532816,0.05664936,88613.0,88612.0,1.19277672]
[1745320533117,0.03464936,88613.0,88612.0,1.19277672]
[1745320533514,0.03364936,88613.0,88612.0,1.19277672]
[1745320535123,0.03364936,88613.0,88612.0,1.00077672]
[1745320535515,0.03464936,88613.0,88612.0,1.00077672]
[1745320536108,0.03464936,88613.0,88612.0,0.83197672]
[1745320536314,0.03264936,88613.0,88612.0,1.55357672]
[1745320536518,0.03364936,88613.0,88612.0,1.55357672]
[1745320537115,0.03364936,88613.0,88612.0,1.36157672]
[1745320540722,0.03264936,88613.0,88612.0,1.0906905]
[1745320540925,0.03364936,88613.0,88612.0,1.36157672]
[1745320551228,0.0564194,88630.0,88624.0,0.1128452]
[1745320551426,0.0625,88624.0,88623.0,0.1692697]
[1745320551629,0.2274452,88624.0,88623.0,0.5300697]
[1745320552133,0.4194452,88624.0,88623.0,0.5300697]
[1745320552429,0.43097336,88624.0,88623.0,0.5300697]
[1745320553429,0.43497336,88624.0,88623.0,0.5300697]
[1745320554131,0.43397336,88624.0,88623.0,0.5300697]
[1745320554337,0.43697336,88624.0,88623.0,0.5300697]
[1745320554633,0.4452364,88624.0,88623.0,0.5300697]
[1745320569049,0.4452364,88624.0,88623.0,0.1692697]
[1745320575238,0.1128503,88620.0,88619.0,0.00026]
[1745320575541,0.2992755,88620.0,88619.0,0.1128516]
[1745320575745,0.3613755,88620.0,88619.0,0.1128516]
[1745320576250,0.5533755,88620.0,88619.0,0.1128516]
[1745320576452,0.5553755,88620.0,88619.0,0.1446516]
[1745320576952,0.5573755,88620.0,88619.0,0.1446516]
[1745320578050,0.1128516,88619.0,88618.0,0.3608]
[1745320578347,0.3728516,88619.0,88618.0,0.4736529]
[1745320578550,0.4353516,88619.0,88618.0,0.4736529]
[1745320579144,0.6273516,88619.0,88618.0,0.4736529]
[1745320579540,0.5165,88619.0,88618.0,0.4736529]
[1745320579751,0.5185,88619.0,88618.0,1.00286912]
[1745320579948,0.51858,88619.0,88618.0,1.03566912]
[1745320580149,0.32658,88619.0,88618.0,1.03566912]
[1745320580755,0.4394316,88619.0,88618.0,1.03566912]
[1745320581444,0.4404316,88619.0,88618.0,1.03566912]
[1745320582043,0.4374316,88619.0,88618.0,1.03566912]
[1745320582255,0.4384316,88619.0,88618.0,1.03566912]
[1745320582942,0.4394316,88619.0,88618.0,1.03566912]
[1745320583153,0.4384316,88619.0,88618.0,1.03566912]
[1745320583451,0.29478,88619.0,88618.0,1.03566912]
[1745320583651,0.26408,88619.0,88618.0,1.03566912]
[1745320584349,0.261,88619.0,88618.0,1.03566912]
[1745320584653,0.26208,88619.0,88618.0,1.03566912]
[1745320584853,0.26408,88619.0,88618.0,1.03566912]
[1745320585049,0.26208,88619.0,88618.0,1.03566912]
[1745320585246,0.26408,88619.0,88618.0,1.03566912]
[1745320585857,0.26208,88619.0,88618.0,1.03566912]
[1745320587141,0.00208,88619.0,88618.0,1.22766912]
[1745320587346,0.002,88619.0,88618.0,1.22766912]
[1745320587547,0.00208,88619.0,88618.0,1.22766912]
[1745320588157,8e-05,88619.0,88618.0,1.22766912]
[1745320588540,8e-05,88619.0,88618.0,1.22866912]
[1745320590756,0.00108,88619.0,88618.0,1.22866912]
[1745320590959,0.00108,88619.0,88618.0,1.22766912]
[1745320594658,0.00108,88619.0,88618.0,1.26076912]
[1745320595650,0.00108,88619.0,88618.0,0.89996912]
[1745320595852,0.00108,88619.0,88618.0,1.62156912]
[1745320596756,8e-05,88619.0,88618.0,1.62156912]
[1745320597863,8e-05,88619.0,88618.0,1.62256912]
[1745320598365,8e-05,88619.0,88618.0,0.89996912]
[1745320598565,8e-05,88619.0,88618.0,1.62156912]
[1745320598763,8e-05,88619.0,88618.0,0.89996912]
[1745320598956,8e-05,88619.0,88618.0,1.62156912]
[1745320600457,8e-05,88619.0,88618.0,1.55566912]
[1745320600865,0.00108,88619.0,88618.0,1.55666912]
[1745320601255,0.00108,88619.0,88618.0,1.39636912]
[1745320601456,0.00308,88619.0,88618.0,1.39536912]
[1745320601650,0.00208,88619.0,88618.0,1.39536912]
[1745320601866,0.005,88619.0,88618.0,1.39536912]
[1745320602166,0.00308,88619.0,88618.0,1.39536912]
[1745320603660,0.00308,88619.0,88618.0,1.1244829]
[1745320603860,8e-05,88619.0,88618.0,1.39536912]
[1745320604062,0.00108,88619.0,88618.0,1.42856912]
[1745320604563,0.00108,88619.0,88618.0,1.36366912]
[1745320604867,0.1339316,88619.0,88618.0,1.0927829]
[1745320605257,0.2294316,88619.0,88618.0,0.8344529]
[1745320606062,0.4214316,88619.0,88618.0,0.8344529]
[1745320614274,0.2294316,88619.0,88618.0,0.8344529]
[1745320615158,0.11658,88619.0,88618.0,0.8652529]
[1745320615362,0.2294316,88619.0,88618.0,0.8652529]
[1745320635577,0.2294316,88619.0,88618.0,0.7524]
[1745320635773,0.2294316,88619.0,88618.0,0.8652529]
[1745320636182,0.4214316,88619.0,88618.0,0.8652529]
[1745320636677,0.4204316,88619.0,88618.0,0.8652529]
[1745320636870,0.4214316,88619.0,88618.0,0.8652529]
[1745320637582,0.4234316,88619.0,88618.0,0.8652529]
[1745320638081,0.4214316,88619.0,88618.0,0.8652529]
[1745320638284,0.4254316,88619.0,88618.0,0.8652529]
[1745320638876,0.4224316,88619.0,88618.0,0.8652529]
[1745320639083,0.4254316,88619.0,88618.0,0.8652529]
[1745320639584,0.4233516,88619.0,88618.0,0.8652529]
[1745320639785,0.4253516,88619.0,88618.0,0.8652529]
[1745320640187,0.4233516,88619.0,88618.0,0.8652529]
[1745320640485,0.4253516,88619.0,88618.0,0.8652529]
[1745320640787,0.4233516,88619.0,88618.0,0.8652529]
[1745320640982,0.4253516,88619.0,88618.0,0.8652529]
[1745320641378,0.216,88619.0,88618.0,0.8652529]
[1745320641689,0.4005716,88619.0,88618.0,0.8964529]
[1745320641880,0.4006516,88619.0,88618.0,0.8964529]
[1745320642080,0.3986516,88619.0,88618.0,0.8964529]
[1745320642380,0.2086516,88619.0,88618.0,0.8964529]
[1745320643388,0.2066516,88619.0,88618.0,0.8964529]
[1745320643687,0.2086516,88619.0,88618.0,0.8964529]
[1745320643887,0.2386516,88619.0,88618.0,0.8964529]
[1745320644091,0.3012516,88619.0,88618.0,0.8964529]
[1745320644479,0.2992516,88619.0,88618.0,0.8964529]
[1745320644786,0.3012516,88619.0,88618.0,0.8964529]
[1745320644983,0.3022516,88619.0,88618.0,0.8964529]
[1745320645686,0.3012516,88619.0,88618.0,0.8964529]
[1745320646891,0.3012516,88619.0,88618.0,0.8652529]
[1745320649088,0.4912516,88619.0,88618.0,0.8652529]
[1745320649280,0.4932516,88619.0,88618.0,0.8652529]
[1745320650185,0.4912516,88619.0,88618.0,0.8652529]
[1745320650389,0.4932516,88619.0,88618.0,0.8652529]
[1745320650783,0.4912516,88619.0,88618.0,0.8652529]
[1745320650990,0.4932516,88619.0,88618.0,0.8652529]
[1745320653591,0.4932516,88619.0,88618.0,0.1436529]
[1745320653894,0.4932516,88619.0,88618.0,0.5044529]
[1745320654087,0.3012516,88619.0,88618.0,0.5044529]
[1745320657191,0.3012516,88619.0,88618.0,0.1436529]
[1745320657391,0.3012516,88619.0,88618.0,0.5044529]
[1745320658692,0.3012516,88619.0,88618.0,0.3916]
[1745320659892,0.3012516,88619.0,88618.0,0.5044529]
[1745320662290,0.3012516,88619.0,88618.0,0.5356529]
[1745320662895,0.2386516,88619.0,88618.0,0.5356529]
[1745320663502,0.2086516,88619.0,88618.0,0.5356529]
[1745320663687,0.1369316,88619.0,88618.0,0.5356529]
[1745320663889,0.1368516,88619.0,88618.0,0.5356529]
[1745320664395,0.1348516,88619.0,88618.0,0.5356529]
[1745320664693,0.1369316,88619.0,88618.0,0.5356529]
[1745320665490,0.1359316,88619.0,88618.0,0.5356529]
[1745320665790,0.02308,88619.0,88618.0,1.03266912]
[1745320666092,0.02308,88619.0,88618.0,1.22466912]
[1745320666292,0.1359316,88619.0,88618.0,1.22466912]
[1745320666988,0.1349316,88619.0,88618.0,1.22466912]
[1745320667189,0.1359316,88619.0,88618.0,1.22466912]
[1745320667395,0.1339316,88619.0,88618.0,1.22466912]
[1745320667598,0.1359316,88619.0,88618.0,1.22466912]
[1745320668300,0.1349316,88619.0,88618.0,1.22466912]
[1745320668500,0.1339316,88619.0,88618.0,1.22466912]
[1745320668798,0.1349316,88619.0,88618.0,1.22466912]
[1745320669199,0.00208,88619.0,88618.0,1.22466912]
[1745320669395,0.1149316,88619.0,88618.0,1.22466912]
[1745320676307,0.1149316,88619.0,88618.0,0.86386912]
[1745320676505,0.1149316,88619.0,88618.0,1.22466912]
[1745320677207,0.1149316,88619.0,88618.0,1.23961877]
[1745320678608,0.00208,88619.0,88618.0,1.23961877]
[1745320678803,0.1149316,88619.0,88618.0,1.23961877]
[1745320679004,0.00208,88619.0,88618.0,1.23961877]
[1745320680816,0.1149316,88619.0,88618.0,1.23961877]
[1745320681612,0.1149316,88619.0,88618.0,1.22466912]
[1745320681807,0.1149316,88619.0,88618.0,0.86386912]
[1745320682002,0.1149316,88619.0,88618.0,1.22466912]
[1745320683112,0.1149316,88619.0,88618.0,1.03266912]
[1745320684203,0.1149316,88619.0,88618.0,1.22466912]
[1745320685410,0.00208,88619.0,88618.0,1.22466912]
[1745320685915,0.1149316,88619.0,88618.0,1.22466912]
[1745320686115,0.00208,88619.0,88618.0,1.22466912]
[1745320686522,0.002,88619.0,88618.0,1.22466912]
[1745320687117,0.00208,88619.0,88618.0,1.22466912]
[1745320687416,0.00108,88619.0,88618.0,1.22466912]
[1745320687712,0.00010801,88628.0,88627.0,0.2128414]
[1745320687913,0.0307,88636.0,88631.0,0.1128363]
[1745320688118,0.0307,88636.0,88631.0,1.22515252]
[1745320689021,0.00316925,88632.0,88631.0,1.22515252]
[1745320689214,0.00316925,88632.0,88631.0,1.03315252]
[1745320690214,0.00616925,88632.0,88631.0,1.03315252]
[1745320691205,0.00616925,88632.0,88631.0,1.39395252]
[1745320693617,0.00616925,88632.0,88631.0,0.67235252]
[1745320693819,0.00616925,88632.0,88631.0,1.39395252]
[1745320694427,0.03646925,88632.0,88631.0,1.39395252]
[1745320694620,0.06816925,88632.0,88631.0,1.39395252]
[1745320694812,0.21230435,88632.0,88631.0,1.39395252]
[1745320695124,0.23230435,88632.0,88631.0,0.4736363]
[1745320696011,0.21230435,88632.0,88631.0,0.4736363]
[1745320696219,0.41430435,88632.0,88631.0,0.4736363]
[1745320698720,0.40430435,88632.0,88631.0,0.4736363]
[1745320698922,0.41430435,88632.0,88631.0,0.4736363]
[1745320699622,0.40430435,88632.0,88631.0,0.4736363]
[1745320700018,0.41430435,88632.0,88631.0,0.4736363]
[1745320700425,0.40430435,88632.0,88631.0,0.4736363]
[1745320704026,0.41430435,88632.0,88631.0,0.4736363]
[1745320704232,0.41430435,88632.0,88631.0,0.5062363]
[1745320705428,0.40430435,88632.0,88631.0,0.5062363]
[1745320706421,0.40530435,88632.0,88631.0,0.5072363]
[1745320707126,0.40530435,88632.0,88631.0,0.1464363]
[1745320707325,0.40530435,88632.0,88631.0,0.5072363]
[1745320708128,0.40430435,88632.0,88631.0,0.5072363]
[1745320708820,0.40330435,88632.0,88631.0,0.5072363]
[1745320709025,0.40130435,88632.0,88631.0,0.5072363]
[1745320712019,0.40030435,88632.0,88631.0,0.4746363]
[1745320712229,0.1692711,88625.0,88624.0,0.1692627]
[1745320712427,0.1792711,88625.0,88624.0,0.2256849]
[1745320713131,0.3712711,88625.0,88624.0,0.2256849]
[1745320714830,0.3712711,88625.0,88624.0,0.0564213]
[1745320715029,0.3722711,88625.0,88624.0,0.0564213]
[1745320715229,0.3732711,88625.0,88624.0,0.0564213]
[1745320715721,0.3722711,88625.0,88624.0,0.0564213]
[1745320716129,0.3732711,88625.0,88624.0,0.0564213]
[1745320716331,0.3742711,88625.0,88624.0,0.0564213]
[1745320716830,0.3722711,88625.0,88624.0,0.0564213]
[1745320717029,0.3732711,88625.0,88624.0,0.0564213]
[1745320717935,0.3722711,88625.0,88624.0,0.0564213]
[1745320718135,0.3732711,88625.0,88624.0,0.0574213]
[1745320719638,0.3732711,88625.0,88624.0,0.4493213]
[1745320721042,0.3732711,88625.0,88624.0,0.4483213]
[1745320722143,0.3722711,88625.0,88624.0,0.4483213]
[1745320722337,0.3732711,88625.0,88624.0,0.4493213]
[1745320722534,0.3722711,88625.0,88624.0,0.4493213]
[1745320722734,0.3732711,88625.0,88624.0,0.4493213]
[1745320726335,0.3733511,88625.0,88624.0,0.4493213]
[1745320726535,0.4449911,88625.0,88624.0,0.4805213]
[1745320727250,0.2529911,88625.0,88624.0,0.4805213]
[1745320728047,0.2519911,88625.0,88624.0,0.4805213]
[1745320728247,0.2529911,88625.0,88624.0,0.4805213]
[1745320729137,0.4449911,88625.0,88624.0,0.4805213]
[1745320729638,0.4449911,88625.0,88624.0,0.1197213]
[1745320729839,0.4449911,88625.0,88624.0,0.4805213]
[1745320730250,0.4449911,88625.0,88624.0,0.1197213]
[1745320730449,0.4449911,88625.0,88624.0,0.4805213]
[1745320731150,0.2529911,88625.0,88624.0,0.4805213]
[1745320733552,0.2529911,88625.0,88624.0,0.1197213]
[1745320733947,0.2529911,88625.0,88624.0,0.4805213]
[1745320734453,0.2529911,88625.0,88624.0,0.75140752]
[1745320734654,0.2529911,88625.0,88624.0,0.97753752]
[1745320734843,0.2529111,88625.0,88624.0,0.97753752]
[1745320735153,0.2529911,88625.0,88624.0,0.97753752]
[1745320735355,0.2429911,88625.0,88624.0,0.97753752]
[1745320735755,0.2419911,88625.0,88624.0,0.97753752]
[1745320737150,0.2409911,88625.0,88624.0,0.97653752]
[1745320737354,0.2419911,88625.0,88624.0,0.97753752]
[1745320738343,0.07272,88625.0,88624.0,0.97753752]
[1745320738946,0.07264,88625.0,88624.0,0.97753752]
[1745320739145,0.07272,88625.0,88624.0,1.16953752]
[1745320739753,0.185564,88625.0,88624.0,1.17053752]
[1745320742954,0.185564,88625.0,88624.0,0.80973752]
[1745320743145,0.185564,88625.0,88624.0,0.97853752]
[1745320743852,0.184564,88625.0,88624.0,0.97753752]
[1745320744053,0.217964,88625.0,88624.0,0.97853752]
[1745320745056,0.217964,88625.0,88624.0,0.97753752]
[1745320745264,0.218964,88625.0,88624.0,0.97753752]
[1745320745458,0.146324,88625.0,88624.0,0.85781622]
[1745320745657,0.219824,88625.0,88624.0,0.3618]
[1745320746058,0.411824,88625.0,88624.0,0.3618]
[1745320747253,0.411824,88625.0,88624.0,0.1138452]
[1745320747653,0.410824,88625.0,88624.0,0.1451452]
[1745320748563,0.411824,88625.0,88624.0,0.1451452]
[1745320749466,0.410824,88625.0,88624.0,0.1451452]
[1745320750063,0.409824,88625.0,88624.0,0.1441452]
[1745320750263,0.411824,88625.0,88624.0,0.1451452]
[1745320751164,0.413824,88625.0,88624.0,0.1451452]
[1745320751863,0.411824,88625.0,88624.0,0.1441452]
[1745320752062,0.412824,88625.0,88624.0,0.1451452]
[1745320752458,0.484464,88625.0,88624.0,0.1451452]
[1745320753460,0.483464,88625.0,88624.0,0.1441452]
[1745320753660,0.484464,88625.0,88624.0,0.1451452]
[1745320753859,0.419484,88625.0,88624.0,0.1451452]
[1745320754055,0.450564,88625.0,88624.0,0.1769452]
[1745320754255,0.256564,88625.0,88624.0,0.1769452]
[1745320754455,0.289564,88625.0,88624.0,0.1769452]
[1745320754966,0.288564,88625.0,88624.0,0.1759452]
[1745320755168,0.289564,88625.0,88624.0,0.1769452]
[1745320755763,0.288564,88625.0,88624.0,0.1759452]
[1745320756061,0.289564,88625.0,88624.0,0.1769452]
[1745320757056,0.289564,88625.0,88624.0,0.1451452]
[1745320757564,0.290564,88625.0,88624.0,0.1451452]
[1745320758263,0.218924,88625.0,88624.0,0.1451452]
[1745320758465,0.290564,88625.0,88624.0,0.001]
[1745320759270,0.482564,88625.0,88624.0,0.001]
[1745320759462,0.1128554,88616.0,88615.0,0.00016925]
[1745320759767,0.1328554,88616.0,88615.0,0.11302595]
[1745320760366,0.1949554,88616.0,88615.0,0.11302595]
[1745320761768,0.20630134,88616.0,88615.0,0.11302595]
[1745320761965,0.20730134,88616.0,88615.0,0.11402595]
[1745320762171,0.20730134,88616.0,88615.0,0.11602595]
[1745320762671,0.20630134,88616.0,88615.0,0.11302595]
[1745320762859,0.20730134,88616.0,88615.0,0.11402595]
[1745320764571,0.20730134,88616.0,88615.0,0.03396925]
[1745320764770,0.20730134,88616.0,88615.0,0.14682595]
[1745320765474,0.1338554,88616.0,88615.0,0.64384217]
[1745320765770,0.1338554,88616.0,88615.0,0.70464217]
[1745320765969,0.2054954,88616.0,88615.0,0.70464217]
[1745320766362,0.2371954,88616.0,88615.0,0.70464217]
[1745320767071,0.2054954,88616.0,88615.0,0.70464217]
[1745320767670,0.2379954,88616.0,88615.0,0.70464217]
[1745320769871,0.2379954,88616.0,88615.0,0.67424217]
[1745320770073,0.3009954,88616.0,88615.0,0.67424217]
[1745320772070,0.3009954,88616.0,88615.0,0.68912071]
[1745320773475,0.3009954,88616.0,88615.0,1.04992071]
[1745320774285,0.3009954,88616.0,88615.0,1.05092071]
[1745320774475,0.2379954,88616.0,88615.0,1.05092071]
[1745320775672,0.1854954,88616.0,88615.0,1.05092071]
[1745320777170,0.1844954,88616.0,88615.0,1.05092071]
[1745320777369,0.1854954,88616.0,88615.0,1.05192071]
[1745320777565,0.001,88616.0,88615.0,1.05192071]
[1745320777777,0.0716,88622.0,88621.0,0.169273]
[1745320777985,0.03,88629.0,88628.0,0.1118401]
[1745320778280,0.0716,88629.0,88628.0,0.4726401]
[1745320778573,0.1844389,88629.0,88628.0,0.48751864]
[1745320779070,0.1128389,88629.0,88628.0,0.55051864]
[1745320779265,0.1844389,88629.0,88628.0,0.55051864]
[1745320779471,0.18454691,88629.0,88628.0,0.55051864]
[1745320779681,0.1844389,88629.0,88628.0,0.55051864]
[1745320779868,0.1845189,88629.0,88628.0,0.55051864]
[1745320780470,0.1865189,88629.0,88628.0,0.5356401]
[1745320780670,0.1865189,88629.0,88628.0,0.5346401]
[1745320780872,0.1845189,88629.0,88628.0,0.5346401]
[1745320781066,0.1845189,88629.0,88628.0,0.54987153]
[1745320781570,0.2783189,88629.0,88628.0,0.55187153]
[1745320783480,0.2783189,88629.0,88628.0,0.5366401]
[1745320790093,0.2783189,88629.0,88628.0,0.1910283]
[1745320793694,0.2783189,88629.0,88628.0,0.1610283]
[1745320799003,0.2783189,88629.0,88628.0,0.16104612]
[1745320800400,0.2783189,88629.0,88628.0,0.19144612]
[1745320800602,0.10428,88629.0,88628.0,0.68846234]
[1745320800791,0.10428,88629.0,88628.0,0.71916234]
[1745320800993,0.10428,88629.0,88628.0,0.70395632]
[1745320801808,0.2171189,88629.0,88628.0,0.70395632]
[1745320802502,0.2171189,88629.0,88628.0,0.71921773]
[1745320802904,0.2171189,88629.0,88628.0,0.70395632]
[1745320803202,0.2171189,88629.0,88628.0,1.06475632]
[1745320804506,0.2171189,88629.0,88628.0,1.08001152]
[1745320808597,0.00108,88629.0,88628.0,1.08001152]
[1745320808797,0.005,88633.0,88631.0,0.49701622]
[1745320809102,0.00850143,88643.0,88642.0,0.1128223]
[1745320809402,0.07156,88643.0,88642.0,0.97063852]
[1745320809706,0.214981,88643.0,88642.0,1.07989372]
[1745320810101,0.214981,88643.0,88642.0,1.07789372]
[1745320810302,0.10216,88643.0,88642.0,1.07789372]
[1745320810500,0.1105745,88643.0,88642.0,1.07789372]
[1745320810810,0.1175745,88643.0,88642.0,1.07989372]
[1745320812102,0.3095745,88643.0,88642.0,1.07989372]
[1745320814810,0.3413745,88643.0,88642.0,1.04969372]
[1745320817915,0.4541955,88643.0,88642.0,1.04969372]
[1745320818109,0.3413745,88643.0,88642.0,1.04969372]
[1745320820815,0.3413745,88643.0,88642.0,1.03443852]
[1745320821017,0.3095745,88643.0,88642.0,1.03443852]
[1745320821514,0.2380145,88643.0,88642.0,1.03443852]
[1745320821715,0.2074145,88643.0,88642.0,1.03443852]
[1745320822417,0.2074145,88643.0,88642.0,1.04967807]
[1745320823515,0.2074145,88643.0,88642.0,1.03443852]
[1745320825212,0.199,88643.0,88642.0,1.03443852]
[1745320825616,0.19908,88643.0,88642.0,1.03443852]
[1745320826114,0.00708,88643.0,88642.0,1.03443852]
[1745320826811,0.00708,88643.0,88642.0,1.04969733]
[1745320830420,0.03768,88643.0,88642.0,1.04969733]
[1745320832720,0.07088,88643.0,88642.0,1.04969733]
[1745320836506,0.183701,88643.0,88642.0,0.48888111]
[1745320836721,0.203701,88643.0,88642.0,0.48888111]
[1745320836923,0.236601,88643.0,88642.0,0.48888111]
[1745320837123,0.428601,88643.0,88642.0,0.48888111]
[1745320837328,0.428601,88643.0,88642.0,0.52078111]
[1745320837619,0.31578,88643.0,88642.0,0.52078111]
[1745320838920,0.3157,88643.0,88642.0,0.52078111]
[1745320839123,0.29578,88643.0,88642.0,0.52078111]
[1745320840223,0.408601,88643.0,88642.0,0.48888111]
[1745320840627,0.408601,88643.0,88642.0,0.52068111]
[1745320847328,0.408601,88643.0,88642.0,0.48888111]
[1745320848133,0.408601,88643.0,88642.0,0.37805881]
[1745320848330,0.418601,88643.0,88642.0,0.49088111]
[1745320848727,0.418601,88643.0,88642.0,0.4756223]
[1745320851440,0.418601,88643.0,88642.0,0.49077565]
[1745320851639,0.408601,88643.0,88642.0,0.49077565]
[1745320851840,0.418601,88643.0,88642.0,0.49077565]
[1745320853643,0.408601,88643.0,88642.0,0.49077565]
[1745320856242,0.408601,88643.0,88642.0,0.52227565]
[1745320856644,0.408601,88643.0,88642.0,0.55507565]
[1745320857042,0.408521,88643.0,88642.0,0.55507565]
[1745320857232,0.408601,88643.0,88642.0,0.55507565]
[1745320858845,0.408601,88643.0,88642.0,0.49077565]
[1745320859543,0.418601,88643.0,88642.0,0.49077565]
[1745320859736,0.408601,88643.0,88642.0,0.52107565]
[1745320861944,0.408521,88643.0,88642.0,0.55187565]
[1745320862141,0.408601,88643.0,88642.0,0.55187565]
[1745320862339,0.408601,88643.0,88642.0,0.52107565]
[1745320864646,0.408601,88643.0,88642.0,0.5059223]
[1745320865651,0.408601,88643.0,88642.0,0.52122327]
[1745320874755,0.408601,88643.0,88642.0,0.5059223]
[1745320876652,0.22968,88643.0,88642.0,0.55422413]
[1745320876857,0.342501,88643.0,88642.0,0.58582413]
[1745320877053,0.311901,88643.0,88642.0,0.58582413]
[1745320877558,0.311901,88643.0,88642.0,0.85671035]
[1745320877747,0.311901,88643.0,88642.0,1.08284035]
[1745320877947,0.311821,88643.0,88642.0,1.08284035]
[1745320878152,0.119901,88643.0,88642.0,1.08284035]
[1745320880357,0.00708,88643.0,88642.0,1.08284035]
[1745320880950,0.007,88643.0,88642.0,1.08284035]
[1745320881150,0.00708,88643.0,88642.0,1.08284035]
[1745320881659,0.119901,88643.0,88642.0,1.08284035]
[1745320881861,0.116901,88643.0,88642.0,1.08184035]
[1745320882058,0.117901,88643.0,88642.0,1.08384035]
[1745320883357,0.113901,88643.0,88642.0,1.08284035]
[1745320883758,0.00108,88643.0,88642.0,1.08284035]
[1745320889160,0.00108,88643.0,88642.0,1.09389966]
[1745320889350,0.00108,88643.0,88642.0,1.08284035]
[1745320891255,0.00108,88643.0,88642.0,1.44364035]
[1745320896964,0.00010801,88649.0,88645.0,0.0564086]
[1745320897270,0.00564352,88657.0,88656.0,0.1128045]
[1745320897457,0.15104672,88657.0,88656.0,1.06725876]
[1745320897655,0.15112672,88657.0,88656.0,1.06725876]
[1745320898172,0.03832352,88657.0,88656.0,1.06625876]
[1745320898468,0.04032352,88657.0,88656.0,1.06725876]
[1745320898665,0.07302352,88657.0,88656.0,1.06725876]
[1745320898867,0.07402352,88657.0,88656.0,1.06825876]
[1745320900469,0.07402352,88657.0,88656.0,1.08054606]
[1745320903064,0.07402352,88657.0,88656.0,1.08050383]
[1745320904064,0.07402352,88657.0,88656.0,0.85437383]
[1745320904271,0.07402352,88657.0,88656.0,1.08050383]
[1745320904669,0.07402352,88657.0,88656.0,1.06376762]
[1745320905365,0.07402352,88657.0,88656.0,1.05152255]
[1745320907066,0.00872352,88657.0,88656.0,1.06813224]
[1745320908465,0.00872352,88657.0,88656.0,1.0681123]
[1745320910371,0.00872352,88657.0,88656.0,1.06839312]
[1745320910571,0.00872352,88657.0,88656.0,1.05152255]
[1745320911575,0.00872352,88657.0,88656.0,1.06376629]
[1745320913462,0.00872352,88657.0,88656.0,1.05152255]
[1745320915977,0.00872352,88657.0,88656.0,0.69072255]
[1745320916177,0.00872352,88657.0,88656.0,1.05152255]
[1745320916967,0.03489648,88658.0,88656.0,1.05152255]
[1745320916968,1e-08,88658.0,88657.0,0.38368942]
[1745320917173,0.00398973,88661.0,88657.0,0.38368942]
[1745320917174,2.48020549,88690.0,88668.0,0.1127892]
[1745320917474,0.0305,88670.0,88668.0,1.07060542]
[1745320917674,0.0305,88670.0,88668.0,1.06210542]
[1745320918078,0.0305,88670.0,88668.0,1.07730725]
[1745320918378,0.00546155,88677.0,88672.0,0.1127842]
[1745320918566,0.0611,88675.0,88672.0,0.62468563]
[1745320918767,0.0611,88675.0,88672.0,0.68538563]
[1745320918977,0.0611,88675.0,88672.0,0.70058746]
[1745320919377,0.0611,88675.0,88672.0,0.69858746]
[1745320920367,0.01283352,88673.0,88672.0,0.69858746]
[1745320920675,0.01283352,88673.0,88672.0,0.68170225]
[1745320922174,0.1127672,88686.0,88680.0,0.112774]
[1745320922374,0.034384,88681.0,88680.0,0.699704]
[1745320922675,0.034384,88681.0,88680.0,0.48593081]
[1745320922878,0.034384,88681.0,88680.0,0.51593081]
[1745320923080,0.226384,88681.0,88680.0,0.51593081]
[1745320923281,0.196384,88681.0,88680.0,0.53113264]
[1745320923578,0.257284,88681.0,88680.0,0.53113264]
[1745320923774,0.259284,88681.0,88680.0,0.75726264]
[1745320923979,0.261284,88681.0,88680.0,0.75726264]